bitfinex/quotes_SOLUSD_20220302
["timestamp","ask_amount","ask_price","bid_price","bid_amount"]
[1646230666910,14.8224,101.27,101.16,184.59130898]
[1646230667112,14.8224,101.27,101.17,6.0]
[1646230667318,14.8224,101.27,101.18,14.8206]
[1646230667511,24.2065,101.3,101.18,113.1306]
[1646230667711,24.2065,101.3,101.19,6.0]
[1646230667911,24.2065,101.3,101.2,50.19059243]
[1646230668112,14.8194,101.29,101.2,50.44059243]
[1646230668312,24.2065,101.3,101.2,50.44059243]
[1646230668713,49.47442309,101.3,101.2,50.44059243]
[1646230669112,22.10394552,101.29,101.2,50.44059243]
[1646230669312,3.31482929,101.28,101.2,50.44059243]
[1646230670114,18.13512929,101.28,101.2,50.44059243]
[1646230670814,18.13512929,101.28,101.2,50.19059243]
[1646230671215,43.40305238,101.28,101.2,50.19059243]
[1646230671917,54.94305238,101.28,101.2,50.19059243]
[1646230672119,54.94305238,101.28,101.17,24.3083]
[1646230672319,0.28936363,101.27,101.17,24.3083]
[1646230672517,98.06,101.26,101.16,23.3131]
[1646230672717,14.8293,101.24,101.16,23.3131]
[1646230673220,7.75680272,101.23,101.17,49.92210905]
[1646230673920,7.75680272,101.23,101.17,50.17210905]
[1646230674120,49.4308,101.25,101.17,50.17210905]
[1646230674825,60.9708,101.25,101.17,49.92210905]
[1646230675020,14.8282,101.23,101.17,49.92210905]
[1646230676220,14.8282,101.23,101.17,50.17210905]
[1646230681329,0.363821,101.22,101.17,0.25]
[1646230681526,15.193221,101.22,101.15,3.951]
[1646230681729,113.253221,101.22,101.15,3.951]
[1646230681926,151.86160153,101.22,101.15,3.951]
[1646230682128,0.36740946,101.2,101.15,3.951]
[1646230682327,11.54,101.19,101.15,3.951]
[1646230682528,14.8371,101.18,101.15,3.951]
[1646230683127,14.8371,101.18,101.16,54.43090265]
[1646230683330,11.54,101.21,101.16,54.43090265]
[1646230683530,14.8328,101.2,101.16,54.43090265]
[1646230684334,60.9772,101.23,101.16,54.43090265]
[1646230684534,11.54,101.24,101.16,54.68090265]
[1646230685533,34.98121219,101.24,101.16,54.68090265]
[1646230685950,60.24913528,101.24,101.16,54.68090265]
[1646230686155,75.07593528,101.24,101.16,54.68090265]
[1646230689753,75.07593528,101.24,101.16,63.21490265]
[1646230689955,23.5346,101.25,101.16,63.21490265]
[1646230690353,12.83596857,101.29,101.17,2.68146614]
[1646230690354,1.29596857,101.29,101.17,2.68146614]
[1646230690654,70.45878076,101.31,101.18,104.06]
[1646230690856,8.3410414,101.3,101.2,58.40226661]
[1646230691054,23.44121219,101.29,101.2,73.46976661]
[1646230691257,23.44121219,101.29,101.2,58.65226661]
[1646230691455,50.93464458,101.29,101.2,58.65226661]
[1646230691854,62.47464458,101.29,101.2,58.65226661]
[1646230692153,14.8208,101.28,101.2,58.65226661]
[1646230695563,38.26201219,101.28,101.2,58.40226661]
[1646230696765,14.8208,101.28,101.2,58.40226661]
[1646230696966,14.8208,101.28,101.2,58.65226661]
[1646230698171,65.76183423,101.28,101.2,58.40226661]
[1646230698670,77.30183423,101.28,101.2,58.40226661]
[1646230698876,17.29481874,101.27,101.2,58.40226661]
[1646230699170,14.8248,101.25,101.2,58.40226661]
[1646230700872,14.8248,101.25,101.2,58.65226661]
[1646230702973,14.8227,101.27,101.2,58.65226661]
[1646230703778,38.26391219,101.27,101.2,58.65226661]
[1646230703976,8.41292577,101.26,101.2,58.65226661]
[1646230704179,14.8246,101.25,101.2,58.65226661]
[1646230705883,14.8246,101.25,101.2,0.25]
[1646230706084,0.27377845,101.24,101.18,24.3297]
[1646230706286,14.8246,101.25,101.18,24.3297]
[1646230707092,14.8246,101.25,101.19,60.38493178]
[1646230707390,14.8246,101.25,101.19,60.63493178]
[1646230709296,14.8246,101.25,101.18,24.0797]
[1646230710194,14.8246,101.25,101.18,69.994888]
[1646230710594,14.8246,101.25,101.18,70.244888]
[1646230711794,17.05591235,101.25,101.18,70.244888]
[1646230712713,14.8246,101.25,101.18,70.244888]
[1646230713312,60.78921219,101.27,101.18,70.244888]
[1646230713511,37.348,101.27,101.18,70.244888]
[1646230714312,37.348,101.27,101.18,85.067188]
[1646230714713,14.8198,101.29,101.18,244.05977939]
[1646230714914,14.8198,101.29,101.19,106.60904003]
[1646230715115,1.29596857,101.31,101.19,165.99904003]
[1646230715316,25.26792309,101.33,101.22,49.39701139]
[1646230715317,11.46096061,101.33,101.22,49.39701139]
[1646230715515,34.27056061,101.33,101.23,14.8139]
[1646230715713,17.3494162,101.32,101.23,15.0639]
[1646230716316,17.3494162,101.32,101.23,115.67294003]
[1646230716917,17.3494162,101.32,101.25,14.8115]
[1646230717117,24.8517514,101.35,101.25,181.3025]
[1646230717317,24.8517514,101.35,101.26,6.0]
[1646230717518,17.36469241,101.34,101.26,6.25]
[1646230717719,17.36469241,101.34,101.26,104.31]
[1646230717920,17.36469241,101.35,101.26,163.45]
[1646230718119,17.36469241,101.35,101.28,45.24988248]
[1646230718320,17.36469241,101.35,101.28,53.20588248]
[1646230719920,17.36469241,101.35,101.28,45.49988248]
[1646230720722,14.8094,101.36,101.28,45.49988248]
[1646230720923,39.6583514,101.38,101.28,210.64988248]
[1646230721122,45.5508,101.39,101.3,14.803]
[1646230721324,1.29596857,101.41,101.3,15.053]
[1646230721526,1.29596857,101.42,101.3,97.0012]
[1646230721730,1.29596857,101.42,101.31,163.2]
[1646230721927,17.37726987,101.41,101.32,60.79737148]
[1646230722124,17.37726987,101.41,101.32,61.04737148]
[1646230722724,17.37726987,101.41,101.32,75.84787148]
[1646230723125,21.22536949,101.42,101.32,75.84787148]
[1646230723325,14.8025,101.4,101.32,75.84787148]
[1646230723523,1.38701597,101.39,101.32,61.04737148]
[1646230723723,14.8025,101.4,101.32,61.04737148]
[1646230723923,62.62660682,101.42,101.32,61.04737148]
[1646230724123,63.95733263,101.42,101.32,61.04737148]
[1646230724329,14.804,101.39,101.32,61.04737148]
[1646230724739,23.70819838,101.39,101.32,61.04737148]
[1646230725732,14.8018,101.41,101.32,61.04737148]
[1646230725939,23.6573,101.42,101.32,68.33137148]
[1646230726130,23.6573,101.42,101.33,6.0]
[1646230726331,23.6573,101.42,101.33,6.25]
[1646230726735,7.90157341,101.41,101.33,6.25]
[1646230726934,22.70277341,101.41,101.33,21.0486]
[1646230727946,22.70277341,101.41,101.33,6.25]
[1646230728134,22.70277341,101.41,101.33,0.25]
[1646230728334,14.8025,101.4,101.32,60.79737148]
[1646230728535,7.90157341,101.41,101.32,60.79737148]
[1646230728734,19.44157341,101.41,101.32,60.79737148]
[1646230730137,19.44157341,101.41,101.32,61.04737148]
[1646230730138,3.1700586,101.37,101.32,61.04737148]
[1646230730539,3.1700586,101.37,101.32,60.79737148]
[1646230731738,23.3616,101.4,101.32,60.79737148]
[1646230731939,23.3616,101.4,101.32,61.04737148]
[1646230732139,14.8056,101.38,101.32,61.04737148]
[1646230732839,23.64762415,101.38,101.32,61.04737148]
[1646230734539,23.64762415,101.38,101.32,60.79737148]
[1646230734740,0.51560449,101.37,101.31,26.43934003]
[1646230734939,14.807,101.37,101.31,24.1403]
[1646230735339,14.807,101.37,101.31,23.8903]
[1646230735538,8.84202415,101.38,101.3,22.8082]
[1646230735738,0.41562967,101.37,101.3,22.8082]
[1646230736039,14.81,101.35,101.3,22.8082]
[1646230736240,14.81,101.35,101.26,22.7532]
[1646230736438,0.41562967,101.34,101.26,22.7532]
[1646230736639,14.81,101.35,101.26,23.0032]
[1646230737140,17.04090786,101.34,101.27,55.03932106]
[1646230737339,17.04090786,101.34,101.27,55.28932106]
[1646230737538,2.22960786,101.34,101.27,55.28932106]
[1646230738141,48.0628,101.37,101.27,55.28932106]
[1646230738341,14.8098,101.35,101.27,55.28932106]
[1646230738942,59.6028,101.37,101.27,55.28932106]
[1646230739142,59.6028,101.37,101.27,64.39732106]
[1646230739143,11.00446084,101.36,101.27,64.39732106]
[1646230740043,25.81306084,101.36,101.27,64.39732106]
[1646230740244,14.8086,101.36,101.27,64.39732106]
[1646230740643,48.0628,101.37,101.27,123.53732106]
[1646230740849,13.77133241,101.42,101.28,23.35204003]
[1646230741049,14.8034,101.4,101.29,106.3777]
[1646230741248,46.4843,101.41,101.31,46.64409479]
[1646230741249,55.18000766,101.41,101.31,46.64409479]
[1646230741447,55.18000766,101.41,101.31,174.42469479]
[1646230741653,46.4843,101.41,101.31,174.42469479]
[1646230741847,46.4843,101.41,101.31,176.97373482]
[1646230742048,46.4843,101.41,101.32,6.0]
[1646230742249,12.83596857,101.45,101.32,163.45]
[1646230742449,11.54,101.45,101.33,206.24324003]
[1646230742648,159.37446215,101.46,101.36,157.2]
[1646230742851,0.49516215,101.46,101.37,104.06]
[1646230743049,0.49516215,101.46,101.37,119.1034]
[1646230744452,0.49516215,101.46,101.37,178.2434]
[1646230745150,0.49516215,101.46,101.37,23.59244003]
[1646230745455,0.49516215,101.46,101.39,170.98893641]
[1646230745652,0.49516215,101.46,101.4,6.0]
[1646230745851,0.49516215,101.46,101.4,12.719]
[1646230746654,1.29596857,101.51,101.41,281.985]
[1646230746860,1.29596857,101.53,101.42,104.06]
[1646230747059,16.07916857,101.54,101.42,212.40014003]
[1646230747261,14.7832,101.54,101.42,212.40014003]
[1646230747459,9.40225924,101.53,101.44,43.55670228]
[1646230747663,9.40225924,101.53,101.44,43.80670228]
[1646230747861,2.2315102,101.52,101.44,43.80670228]
[1646230748062,2.16453492,101.51,101.44,43.80670228]
[1646230748260,2.2315102,101.52,101.44,43.80670228]
[1646230748661,2.2315102,101.54,101.44,43.80670228]
[1646230748862,49.2938,101.53,101.44,43.80670228]
[1646230749265,10.9376908,101.52,101.44,43.80670228]
[1646230749665,25.7236908,101.52,101.44,43.80670228]
[1646230750263,2.2315102,101.54,101.44,58.59020228]
[1646230750463,45.5116,101.55,101.44,52.31674231]
[1646230750668,45.5116,101.55,101.45,6.0]
[1646230750866,45.5116,101.55,101.45,6.25]
[1646230751063,14.7826,101.54,101.45,6.25]
[1646230751264,25.31286621,101.54,101.46,44.92951534]
[1646230751565,34.2653,101.57,101.46,62.50845537]
[1646230751765,47.15039483,101.59,101.47,6.0]
[1646230751964,45.7974,101.59,101.47,58.7008]
[1646230752165,60.5726,101.59,101.48,2.54904003]
[1646230752365,14.7752,101.59,101.49,6.0]
[1646230752566,20.26921219,101.61,101.5,53.25836361]
[1646230752766,20.26921219,101.61,101.51,6.0]
[1646230752966,20.26921219,101.61,101.51,8.79904003]
[1646230753282,14.7743,101.6,101.51,6.25]
[1646230753478,17.0058102,101.6,101.51,6.25]
[1646230753678,9.97584119,101.59,101.52,57.67668855]
[1646230753879,9.97584119,101.59,101.52,57.92668855]
[1646230754278,12.20735139,101.59,101.48,2.54904003]
[1646230754479,12.20735139,101.59,101.48,0.25]
[1646230754880,33.8865362,101.59,101.47,46.6938]
[1646230755282,45.4265362,101.59,101.48,57.17913349]
[1646230756082,1.59095297,101.56,101.48,57.42913349]
[1646230756282,1.59095297,101.56,101.48,57.17913349]
[1646230757085,16.37095297,101.56,101.48,57.17913349]
[1646230757685,16.37095297,101.56,101.48,57.42913349]
[1646230757884,1.59095297,101.56,101.48,57.42913349]
[1646230758786,1.59095297,101.56,101.48,57.17913349]
[1646230759783,16.37095297,101.56,101.48,57.17913349]
[1646230759983,16.37095297,101.56,101.47,46.6938]
[1646230760184,0.32738015,101.55,101.47,46.6938]
[1646230761187,14.783,101.54,101.46,54.38324694]
[1646230761389,9.97584119,101.53,101.46,54.38324694]
[1646230762187,14.783,101.54,101.46,54.63324694]
[1646230765890,11.54,101.54,101.46,54.38324694]
[1646230766089,11.54,101.54,101.45,3.94]
[1646230766090,111.8315102,101.54,101.45,3.94]
[1646230766292,0.44806156,101.53,101.45,3.94]
[1646230766490,11.54,101.52,101.4,52.7285]
[1646230766692,0.44806156,101.51,101.4,52.7285]
[1646230767090,14.21957176,101.52,101.41,45.38242586]
[1646230767292,38.5418102,101.52,101.41,45.38242586]
[1646230767492,2.2315102,101.51,101.41,45.38242586]
[1646230767993,14.7898,101.49,101.41,45.38242586]
[1646230768192,14.7898,101.49,101.41,48.18146589]
[1646230768594,117.78738905,101.51,101.41,45.38242586]
[1646230768797,2.2315102,101.49,101.41,45.38242586]
[1646230768992,11.54,101.5,101.41,45.38242586]
[1646230769194,14.7925,101.47,101.41,45.38242586]
[1646230770597,14.7925,101.47,101.41,45.63242586]
[1646230771200,14.7925,101.47,101.41,0.25]
[1646230771505,14.7925,101.47,101.4,49.0385]
[1646230772300,14.7904,101.49,101.41,48.07209992]
[1646230772499,14.7904,101.49,101.41,48.32209992]
[1646230773501,14.7911,101.48,101.41,48.32209992]
[1646230775102,75.3692,101.5,101.41,50.87113995]
[1646230775303,63.8292,101.5,101.41,59.62513995]
[1646230775503,49.0406,101.5,101.41,157.68513995]
[1646230775704,20.26921219,101.54,101.41,220.76713995]
[1646230775904,49.7391,101.54,101.43,43.59196278]
[1646230776104,49.7391,101.54,101.44,14.7843]
[1646230776403,49.7391,101.54,101.45,54.02240333]
[1646230776606,49.7391,101.54,101.45,54.27240333]
[1646230776906,114.23497159,101.54,101.45,54.27240333]
[1646230777104,114.23497159,101.54,101.45,0.25]
[1646230777305,20.26921219,101.53,101.45,0.25]
[1646230777505,31.80921219,101.53,101.45,0.25]
[1646230777708,34.04072239,101.53,101.42,27.37154003]
[1646230777904,31.80921219,101.53,101.42,27.37154003]
[1646230778104,14.7865,101.51,101.43,57.10442341]
[1646230778304,14.7865,101.51,101.43,57.35442341]
[1646230781907,14.7865,101.51,101.43,72.14002341]
[1646230782307,14.7845,101.53,101.43,170.20002341]
[1646230782708,14.7845,101.53,101.43,72.14002341]
[1646230783407,14.7845,101.53,101.45,45.17465419]
[1646230783609,14.7845,101.53,101.45,45.42465419]
[1646230784811,14.7845,101.53,101.45,60.20745419]
[1646230787817,49.7391,101.54,101.45,64.14745419]
[1646230788221,49.7391,101.54,101.47,47.97947417]
[1646230788419,49.7391,101.54,101.47,55.22347417]
[1646230788921,26.30776463,101.55,101.47,55.22347417]
[1646230791524,26.30776463,101.55,101.47,48.22947417]
[1646230791725,111.81767483,101.55,101.45,48.3687]
[1646230791928,111.81767483,101.55,101.42,3.94]
[1646230791929,0.30773746,101.54,101.42,3.94]
[1646230792126,11.54,101.53,101.42,49.464]
[1646230792325,0.30773746,101.52,101.42,45.524]
[1646230792523,14.07924766,101.52,101.42,45.524]
[1646230792729,13.7715102,101.52,101.43,54.72330683]
[1646230793129,13.7715102,101.52,101.43,54.97330683]
[1646230794129,14.7883,101.5,101.43,54.97330683]
[1646230794747,14.7883,101.5,101.43,54.72330683]
[1646230796145,14.7883,101.5,101.43,54.97330683]
[1646230798246,38.0088,101.52,101.43,54.97330683]
[1646230798747,17.48554664,101.51,101.43,54.97330683]
[1646230799146,17.48554664,101.51,101.43,69.75900683]
[1646230799346,17.48554664,101.51,101.43,72.30804686]
[1646230799547,38.0088,101.52,101.43,72.30804686]
[1646230799946,23.2227,101.52,101.43,76.24804686]
[1646230800148,23.2227,101.52,101.43,170.36804686]
[1646230800348,23.2227,101.52,101.43,72.30804686]
[1646230800950,22.7227,101.52,101.43,54.97330683]
[1646230801148,17.46781071,101.51,101.43,54.97330683]
[1646230801348,17.46781071,101.51,101.43,54.72330683]
[1646230801749,14.7883,101.5,101.43,54.72330683]
[1646230802653,14.7883,101.5,101.43,54.97330683]
[1646230803254,38.80476857,101.52,101.43,54.97330683]
[1646230803454,22.7227,101.52,101.43,57.52234686]
[1646230803654,23.4421,101.53,101.45,50.96421683]
[1646230803856,23.4421,101.53,101.45,51.21421683]
[1646230804655,1.29596857,101.54,101.45,65.99701683]
[1646230804859,12.8221332,101.55,101.45,166.60605686]
[1646230805055,12.8221332,101.55,101.45,68.54605686]
[1646230805255,17.51113373,101.54,101.45,68.54605686]
[1646230805656,32.29343373,101.54,101.45,68.54605686]
[1646230806057,17.51113373,101.53,101.45,68.54605686]
[1646230807858,17.51113373,101.53,101.45,0.25]
[1646230808058,1.29596857,101.53,101.44,27.2292]
[1646230808457,17.51113373,101.52,101.44,23.2892]
[1646230808657,17.51113373,101.52,101.44,23.0392]
[1646230809060,32.29763373,101.51,101.44,23.0392]
[1646230809462,14.7865,101.51,101.44,23.0392]
[1646230809661,14.7865,101.51,101.45,58.58810583]
[1646230810066,14.7865,101.51,101.45,58.83810583]
[1646230811263,14.7865,101.51,101.45,0.25]
[1646230811464,14.7865,101.51,101.44,23.2892]
[1646230811666,14.7883,101.5,101.44,23.0392]
[1646230811866,0.27238864,101.49,101.4,3.94]
[1646230812070,11.81238864,101.49,101.37,73.9292]
[1646230812268,0.27238864,101.47,101.39,43.65000952]
[1646230812468,11.54,101.46,101.39,43.65000952]
[1646230813370,35.90863219,101.46,101.39,43.65000952]
[1646230814070,14.7969,101.44,101.37,46.8259]
[1646230814276,14.7969,101.44,101.37,47.0759]
[1646230815071,14.7969,101.44,101.37,92.99946996]
[1646230815472,14.7969,101.44,101.37,92.74946996]
[1646230816978,14.7969,101.44,101.37,92.99946996]
[1646230818778,14.7969,101.44,101.37,92.74946996]
[1646230818979,14.7969,101.44,101.37,92.99946996]
[1646230820679,49.9879,101.46,101.37,92.99946996]
[1646230820879,38.4479,101.46,101.37,92.99946996]
[1646230822084,38.4479,101.46,101.37,113.79386996]
[1646230822384,60.8511,101.49,101.37,113.79386996]
[1646230822585,2.25710043,101.5,101.38,2.54904003]
[1646230822790,22.812,101.52,101.41,98.06]
[1646230822985,47.8151,101.53,101.42,147.69470711]
[1646230823186,23.70997553,101.54,101.44,152.65572426]
[1646230823390,36.92348785,101.57,101.44,152.65572426]
[1646230823391,1.29596857,101.56,101.46,47.68387237]
[1646230823593,23.70997553,101.57,101.46,47.93387237]
[1646230823793,17.52594435,101.55,101.46,223.93761032]
[1646230823998,17.52594435,101.55,101.47,106.60904003]
[1646230824193,17.52594435,101.57,101.47,116.14504003]
[1646230824493,26.0598423,101.57,101.49,60.95896574]
[1646230824692,26.0598423,101.57,101.49,61.20896574]
[1646230825193,23.31189795,101.57,101.49,61.20896574]
[1646230825695,23.31189795,101.57,101.49,15.0257]
[1646230825994,8.53389795,101.57,101.49,0.25]
[1646230826195,32.28596623,101.56,101.48,0.25]
[1646230826392,17.50656623,101.56,101.47,15.0287]
[1646230826895,3.03289621,101.55,101.48,70.91233999]
[1646230827095,3.03289621,101.55,101.48,71.16233999]
[1646230828096,3.03289621,101.55,101.48,73.71138002]
[1646230828906,3.03289621,101.55,101.48,56.38423999]
[1646230829107,3.03289621,101.55,101.48,0.25]
[1646230829312,3.03289621,101.55,101.46,65.04274003]
[1646230829507,3.03289621,101.55,101.46,62.4937]
[1646230830007,14.7821,101.54,101.46,62.4937]
[1646230830207,8.53389795,101.53,101.47,43.45627685]
[1646230830408,8.53389795,101.53,101.47,43.70627685]
[1646230831308,14.7821,101.54,101.47,43.70627685]
[1646230831509,14.7801,101.56,101.47,58.48577685]
[1646230831710,22.7633,101.57,101.48,2.54904003]
[1646230831912,22.7633,101.57,101.48,2.79904003]
[1646230832312,30.92986261,101.57,101.5,51.61974139]
[1646230832512,8.16656261,101.57,101.5,51.86974139]
[1646230835115,8.16656261,101.57,101.46,50.01224003]
[1646230835316,10.39266688,101.57,101.46,50.01224003]
[1646230835521,10.39266688,101.57,101.46,47.4632]
[1646230835721,17.82621014,101.56,101.46,47.4632]
[1646230835917,17.49121292,101.56,101.46,47.4632]
[1646230836117,14.785,101.52,101.44,70.10803786]
[1646230836316,8.16656261,101.51,101.44,70.10803786]
[1646230836516,8.16656261,101.51,101.44,55.41693786]
[1646230837322,22.95326261,101.51,101.44,55.41693786]
[1646230837618,8.16656261,101.51,101.44,55.41693786]
[1646230838221,8.16656261,101.51,101.44,55.66693786]
[1646230838418,47.7594,101.55,101.45,6.0]
[1646230838620,47.7594,101.55,101.45,6.25]
[1646230839323,14.7851,101.52,101.45,0.25]
[1646230839519,0.8180073,101.51,101.45,0.25]
[1646230839720,0.8180073,101.51,101.44,55.66693786]
[1646230840321,0.8180073,101.51,101.44,55.41693786]
[1646230840520,0.8180073,101.51,101.43,47.1077]
[1646230840723,14.7882,101.5,101.43,47.1077]
[1646230840921,14.7882,101.5,101.41,53.8658]
[1646230841521,14.7882,101.5,101.42,144.52777919]
[1646230841721,0.8180073,101.51,101.42,46.71777919]
[1646230843123,15.6045073,101.51,101.42,46.71777919]
[1646230843725,0.8180073,101.51,101.42,0.25]
[1646230843928,0.8180073,101.51,101.41,24.8039]
[1646230844526,0.8180073,101.51,101.41,24.5539]
[1646230844825,9.8864371,101.48,101.41,24.5539]
[1646230845025,9.8864371,101.48,101.38,17.33934003]
[1646230845225,9.8864371,101.48,101.38,2.54904003]
[1646230845426,9.8864371,101.48,101.37,10.29238083]
[1646230845627,0.31727173,101.47,101.35,136.84848748]
[1646230845930,0.31727173,101.47,101.36,9.944]
[1646230846126,59.2040371,101.48,101.37,43.21947853]
[1646230846324,59.2040371,101.48,101.37,43.46947853]
[1646230846525,59.2040371,101.48,101.37,43.21947853]
[1646230846726,70.7440371,101.48,101.37,43.21947853]
[1646230847533,14.7955,101.45,101.37,43.21947853]
[1646230847729,1.68035706,101.44,101.37,43.21947853]
[1646230848731,16.47715706,101.44,101.37,43.21947853]
[1646230848930,16.47715706,101.44,101.35,24.2512]
[1646230848931,1.68035706,101.44,101.35,24.2512]
[1646230849133,10.95535706,101.44,101.34,3.944]
[1646230849733,10.95535706,101.44,101.34,0.25]
[1646230849931,14.7997,101.42,101.34,47.1969804]
[1646230850132,9.8864371,101.41,101.34,47.4469804]
[1646230851235,24.6876371,101.41,101.33,47.9251]
[1646230851434,17.1174371,101.41,101.33,47.9251]
[1646230851637,17.1174371,101.41,101.32,105.5593]
[1646230851834,17.1174371,101.41,101.32,22.7374]
[1646230852238,17.1174371,101.41,101.33,60.87413427]
[1646230852436,9.8864371,101.41,101.33,60.87413427]
[1646230852639,14.803,101.4,101.33,60.87413427]
[1646230853036,14.803,101.4,101.33,61.12413427]
[1646230853643,1.68035706,101.39,101.33,61.12413427]
[1646230857739,14.803,101.4,101.33,61.12413427]
[1646230858139,0.29921601,101.39,101.33,0.25]
[1646230858347,14.803,101.4,101.32,22.9874]
[1646230858942,0.29921601,101.39,101.32,22.9874]
[1646230859140,11.17474478,101.39,101.32,80.22916785]
[1646230860540,77.2175,101.42,101.32,80.22916785]
[1646230860740,62.6061,101.42,101.32,80.22916785]
[1646230860944,47.8056,101.42,101.32,178.28916785]
[1646230861240,10.30463611,101.46,101.33,163.2]
[1646230861446,8.66501001,101.46,101.34,56.39419109]
[1646230861647,8.66501001,101.46,101.34,204.95083112]
[1646230861843,14.7962,101.45,101.36,48.13837597]
[1646230862067,2.90178415,101.44,101.36,55.85237597]
[1646230863247,2.90178415,101.44,101.36,48.38837597]
[1646230864449,17.69848415,101.44,101.36,48.38837597]
[1646230866259,14.7986,101.43,101.34,47.6976]
[1646230866463,5.12781808,101.44,101.34,47.6976]
[1646230866958,116.62852996,101.44,101.3,3.946]
[1646230867160,168.36087108,101.43,101.3,51.7328]
[1646230867359,20.20501001,101.42,101.3,106.85413387]
[1646230867658,45.14188295,101.42,101.3,106.85413387]
[1646230867859,2.22603393,101.41,101.3,106.85413387]
[1646230868061,14.807,101.37,101.3,106.85413387]
[1646230868263,14.807,101.37,101.3,51.7328]
[1646230868468,6.457,101.37,101.3,51.7328]
[1646230868662,6.457,101.37,101.3,3.946]
[1646230869266,8.66501001,101.36,101.3,3.946]
[1646230870077,23.47351001,101.36,101.3,3.946]
[1646230870280,8.66501001,101.36,101.3,3.946]
[1646230871378,14.813,101.33,101.3,3.946]
[1646230871578,2.90178415,101.32,101.23,47.4551]
[1646230871781,2.90178415,101.32,101.24,6.0]
[1646230871980,2.90178415,101.32,101.23,47.4551]
[1646230872380,5.12781808,101.32,101.21,14.6069]
[1646230872580,8.66501001,101.28,101.23,55.01630802]
[1646230872783,16.32701001,101.28,101.21,14.6069]
[1646230872978,16.32701001,101.28,101.2,162.2929572]
[1646230873178,16.32701001,101.28,101.21,6.0]
[1646230873179,7.662,101.28,101.21,6.0]
[1646230874179,8.37665245,101.28,101.21,6.0]
[1646230874481,8.37665245,101.28,101.2,1.4865572]
[1646230874482,23.19665245,101.28,101.2,1.4865572]
[1646230874679,23.51255068,101.28,101.2,1.4865572]
[1646230874878,23.19665245,101.28,101.2,1.4865572]
[1646230875278,23.19665245,101.28,101.21,47.26892111]
[1646230875879,23.19665245,101.28,101.2,1.4865572]
[1646230876178,23.19665245,101.28,101.2,1.7365572]
[1646230876378,0.42132308,101.27,101.2,1.7365572]
[1646230876579,8.79797553,101.28,101.2,1.7365572]
[1646230876879,24.9175,101.32,101.21,54.58110081]
[1646230877095,24.9175,101.32,101.21,54.83110081]
[1646230877892,8.30597106,101.31,101.21,54.83110081]
[1646230878092,23.12277106,101.31,101.21,69.64660081]
[1646230879492,24.9175,101.32,101.21,72.19564084]
[1646230879695,24.9175,101.32,101.22,6.0]
[1646230879893,24.9175,101.32,101.23,14.813]
[1646230880092,24.9175,101.32,101.23,15.063]
[1646230880497,34.50346786,101.32,101.24,54.33944091]
[1646230880696,34.50346786,101.32,101.24,54.58944091]
[1646230880896,49.31786786,101.32,101.24,54.58944091]
[1646230881096,24.40036786,101.32,101.24,54.58944091]
[1646230882597,9.58596786,101.32,101.24,0.25]
[1646230882803,9.58596786,101.32,101.22,6.25]
[1646230882998,9.58596786,101.32,101.22,0.25]
[1646230883299,9.58596786,101.32,101.21,63.139]
[1646230883498,9.58596786,101.32,101.22,59.20666903]
[1646230883698,9.58596786,101.32,101.22,59.45666903]
[1646230884099,1.9808263,101.29,101.22,59.45666903]
[1646230884399,107.6591,101.33,101.22,74.27146903]
[1646230885400,8.19910882,101.32,101.22,74.27146903]
[1646230885801,8.19910882,101.32,101.22,76.82050906]
[1646230886005,46.7281,101.33,101.22,234.02050906]
[1646230886201,46.7281,101.33,101.22,251.73850906]
[1646230886401,46.7281,101.33,101.22,272.42508894]
[1646230886900,46.7281,101.33,101.22,287.12058894]
[1646230887100,10.8482744,101.32,101.22,287.12058894]
[1646230887500,10.8482744,101.32,101.22,227.98058894]
[1646230887701,10.8482744,101.32,101.22,221.80258894]
[1646230887999,10.8482744,101.32,101.22,201.11600906]
[1646230888401,10.8482744,101.32,101.22,189.57600906]
[1646230889101,10.8482744,101.32,101.22,91.51600906]
[1646230890915,32.7695744,101.32,101.22,85.51600906]
[1646230891113,17.9552744,101.32,101.22,85.51600906]
[1646230891413,17.9552744,101.32,101.22,82.96696903]
[1646230891715,17.9552744,101.32,101.22,68.27146903]
[1646230891914,17.9552744,101.32,101.21,48.0737]
[1646230892115,20.18130845,101.32,101.21,48.0737]
[1646230892319,31.72130845,101.32,101.21,48.0737]
[1646230892718,53.00011172,101.32,101.21,48.0737]
[1646230892917,0.32598989,101.31,101.22,50.639439]